Cogmind - Beta 14 @@@ ROGUE MODE // 2024.11.23 @ 11:16:01 Player: akira Result: Destroyed by G-34 Mercenary with Small Laser Performance ------------- Evolutions (0) 0 Regions Visited (1) 200 Robots Destroyed (16) 80 Value Destroyed (378) 378 Prototype IDs (0) 0 Alien Tech Used (0) 0 Bonus (0) 0 TOTAL SCORE: 658 Bonus ------- None Cogmind --------- Core Integrity 0/250 Matter 300/300 Energy 160/160 System Corruption 3% Temperature Cool (6) Movement Treading (240) Ox1 Location -10/Materials Parts ------- > --- POWER (1) -------- Light Nuclear Core > --- PROPULSION (2) --- Improved Treads Improved Treads > --- UTILITY (2) ------ High-capacity Storage Unit Targeting Computer > --- WEAPON (2) ------- Light Assault Rifle Mining Claw > --- INVENTORY (20) --- Ion Engine Light Ion Engine Improved Treads Aluminum Leg Aluminum Leg Aluminum Leg Aluminum Leg Aluminum Leg Huge Storage Unit Large Matter Pod (104) Power Shielding Light Armor Plating Light Assault Rifle Light Assault Rifle Light Assault Rifle Grenade Launcher Datajack Peak State ------------ > --- POWER ------------ Light Nuclear Core > --- PROPULSION ------- Improved Treads Improved Treads > --- UTILITY ---------- High-capacity Storage Unit Targeting Computer > --- WEAPON ----------- Light Assault Rifle Mining Claw > --- INVENTORY -------- Improved Treads Aluminum Leg Aluminum Leg Aluminum Leg Aluminum Leg Aluminum Leg Huge Storage Unit Large Matter Pod Power Shielding Light Armor Plating Grenade Launcher Datajack [Rating: 12] Favorites ----------- Power Ion Engine Engine Ion Engine Power Core Light Nuclear Core Propulsion Improved Treads Treads Improved Treads Utility Targeting Computer Storage High-capacity Storage Unit Processor Targeting Computer Weapon Light Assault Rifle Energy Gun EM Pulse Gun Ballistic Gun Light Assault Rifle Slashing Weapon Mining Claw Build | -11 -10 ------- Run | Yrd Mat Slots Evolved . | . . Power . | . . Propulsion . | . . Utility . | . . Weapon . | . . Parts Attached 19 | 5 14 Power 4 | 1 3 Engine 3 | 1 2 Core 1 | . 1 Reactor . | . . Propulsion 6 | 2 4 Treads 6 | 2 4 Leg . | . . Wheel . | . . Hover . | . . Flight . | . . Utility 3 | 1 2 Device . | . . Storage 2 | 1 1 Processor 1 | . 1 Hackware . | . . Protection . | . . Artifact . | . . Weapon 6 | 1 5 Energy Gun 1 | . 1 Energy Cannon . | . . Ballistic Gun 4 | 1 3 Ballistic Cannon . | . . Launcher . | . . Special Weapon . | . . Impact Weapon . | . . Slashing Weapon 1 | . 1 Piercing Weapon . | . . Special Melee Weapon . | . . Unidentified Prototypes . | . . Corrupted Parts 1 | . 1 System Corruption 3 | . 3 Parts Lost 8 | . 8 Power 3 | . 3 Propulsion 3 | . 3 Utility . | . . Weapon 2 | . 2 Highest Loss Streak 6 | . 6 To Critical Strikes 1 | . 1 Average Slot Usage (%) 94 | . 94 Engine 8 | . 8 Core 5 | . 5 Treads 27 | . 27 Storage 14 | . 14 Processor 13 | . 13 Energy Gun 2 | . 2 Ballistic Gun 13 | . 13 Slashing Weapon 8 | . 8 Peak Build Rating 12 | 5 12 Average Rating 9 | 3 9 On Entrance 2 | . 5 Naked Turns . | . . Heaviest Build 49 | 11 49 Greatest Support 46 | 40 46 Greatest Overweight (x) 3 | 3 1 Average Overweight (x) . | . . Largest Inventory Capacity 20 | 8 20 Average Capacity 18 | 7 19 Most Carried 17 | 4 17 Average Carried 12 | 2 12 Final Capacity 20 | 8 20 Final Carried 17 | 4 17 Class Distribution -------------------- 100% | Mutant Dominant Class ---------------- Mutant | -10/Materials Resources | -11 -10 ----------- Run | Yrd Mat Matter Collected 539 | 207 332 Remotely . | . . Salvage Created 504 | . 504 Parts 36 | . 36 Haulers Intercepted . | . . Recyclers Shooed . | . . Parts Field Recycled . | . . Retrieved Matter . | . . Parts Self-Destructed . | . . Prevented . | . . Kills | -11 -10 ------- Run | Yrd Mat Combat Hostiles Destroyed 12 | . 12 Melee 3 | . 3 Guns 9 | . 9 Classes Destroyed 5 | . 5 Recycler 1 | . 1 Operator 2 | . 2 Watcher 1 | . 1 Swarmer 5 | . 5 Grunt 7 | . 7 Best Kill Streak 3 | . 3 Combat Bots Only 3 | . 3 Max Kills in Single Turn 1 | . 1 Gunslinging . | . . Exploded . | . . Melee 1 | . 1 Uniques/NPCs Destroyed . | . . Combat | -11 -10 -------- Run | Yrd Mat Hostile Shots Fired 169 | . 169 Missed 41 | . 41 Damage Taken 1447 | . 1447 Core 257 | . 257 Absorbed by Shields . | . . Core Remaining (%) 100 | 100 . Volleys Fired 66 | . 66 Largest 2 | . 2 Hottest 60 | . 60 Shots Fired 74 | . 74 Gun 74 | . 74 Cannon . | . . Launcher . | . . Special . | . . Kinetic 65 | . 65 Thermal . | . . Explosive . | . . Electromagnetic 9 | . 9 Robot Hit Streak 11 | . 11 Robot Miss Streak 2 | . 2 Penetration Max . | . . Secondary Targets . | . . Shots Hit Robots 65 | . 65 Core Hits 31 | . 31 Critical Kills . | . . Critical Parts Destroyed . | . . Critical Strikes . | . . Melee Attacks 14 | . 14 Impact . | . . Slashing 14 | . 14 Piercing . | . . Sneak Attacks 1 | . 1 Combat Hostiles . | . . Follow-up Attacks . | . . Damage Inflicted 745 | . 745 Guns 484 | . 484 Cannons . | . . Explosions . | . . Melee 261 | . 261 Ramming . | . . Kinetic 402 | . 402 Thermal . | . . Explosive . | . . Electromagnetic 82 | . 82 Impact . | . . Slashing 261 | . 261 Piercing . | . . Highest Corruption 3 | . 3 Average Corruption 3 | . 3 Corruption Purged . | . . Corruption Blocked . | . . Effects 7 | . 7 Message Errors 1 | . 1 Matter Fused 3 | . 3 Energy Discharges 1 | . 1 Data Loss (minor) 1 | . 1 Misfires 1 | . 1 Overload Shots . | . . Overflow Damage 30 | . 30 Projectiles . | . . Explosions . | . . Melee 30 | . 30 Knockbacks . | . . Impact . | . . Kinetic . | . . Secondary . | . . Self-Inflicted Damage . | . . Shots . | . . Rammed . | . . Targets Rammed . | . . Kicked . | . . Crushed . | . . Highest Temperature 59 | . 59 Average Temperature 15 | . 15 Received Heat Transfer 678 | . 678 Siege Activations . | . . Robots Corrupted . | . . Combat Hostiles . | . . Parts Fried . | . . Impact Corruptions . | . . Robots Melted . | . . Combat Hostiles . | . . Parts Melted . | . . Heat Transferred . | . . Parts Sabotaged . | . . Parts Stolen . | . . Parts Stripped . | . . Power Chain Reactions . | . . Alert | -11 -10 ------- Run | Yrd Mat Peak Influence 97 | . 97 Initial . | . . Average 35 | . 37 Maximum Alert Level . | . . Low Security (%) 100 | 100 100 Level 1 . | . . Level 2 . | . . Level 3 . | . . Level 4 . | . . Level 5 . | . . High Security . | . . Max Security . | . . Squads Dispatched 3 | . 3 Investigation 1 | . 1 Extermination . | . . Reinforcement 2 | . 2 Assault . | . . Garrison . | . . Intercept . | . . Searches Triggered . | . . Construction Impeded . | . . Haulers Reinforced . | . . Active Scanning Responses . | . . Cargo Convoy Interrupts . | . . Stealth | -11 -10 --------- Run | Yrd Mat Distress Signals 1 | . 1 Communications Jammed . | . . Distress Signals . | . . Times Spotted 26 | . 26 Peak Tracking Total 3 | . 3 Tactical Retreats 1 | . 1 Traps | -11 -10 ------- Run | Yrd Mat Traps Triggered 1 | . 1 Indirectly . | . . Trap Hack Attempts . | . . Triggered . | . . Disarmed . | . . Reprogrammed . | . . Reused . | . . Traps Extracted . | . . Installed . | . . Triggered . | . . Machines | -11 -10 ---------- Run | Yrd Mat Machines Disabled 1 | . 1 Max in Single Turn 1 | . 1 Machines Repaired . | . . Machines Dismantled . | . . Machines Sabotaged . | . . Overloaded Fab Kills . | . . Hacking | -11 -10 --------- Run | Yrd Mat Machines Accessed 2 | . 2 Terminals 2 | . 2 Fabricators . | . . Repair Stations . | . . Recycling Units . | . . Scanalyzers . | . . Garrison Access . | . . Total Hacks 4 | . 4 Successful 3 | . 3 Failed 1 | . 1 Catastrophic . | . . Database Lockouts . | . . Manual 4 | . 4 Terminals 4 | . 4 Fabricators . | . . Repair Stations . | . . Recycling Units . | . . Scanalyzers . | . . Garrison Access . | . . Terminal Hacks 3 | . 3 Robot Analysis 3 | . 3 Fabricator Hacks . | . . Repair Station Hacks . | . . Recycling Unit Hacks . | . . Scanalyzer . | . . Garrison Access Hacks . | . . Unauthorized Hacks . | . . Terminals . | . . Fabricators . | . . Repair Stations . | . . Recycling Units . | . . Scanalyzers . | . . Garrison Access . | . . Data Cores Recovered . | . . Used . | . . Hacking Detections 1 | . 1 Full Trace Events . | . . Feedback Events . | . . Feedback Blocked . | . . Robot Schematics Acquired . | . . Robots Built . | . . Authchips . | . . Time . | . . Total Robot Build Rating . | . . Part Schematics Acquired . | . . Parts Built . | . . Authchips . | . . Time . | . . Total Part Build Rating . | . . Parts Repaired . | . . Time . | . . Parts Recycled . | . . Recycled Matter . | . . Retrieved Matter . | . . Retrieved Components . | . . Parts Scanalyzed . | . . Part Schematics Acquired . | . . Parts Damaged . | . . Bothacking | -11 -10 ------------ Run | Yrd Mat Used RIF Installer . | . . Robots Hacked . | . . Non-combat . | . . Combat . | . . Robot Hacks Applied . | . . Relay Couplers Released . | . . Fabnet Peak Effective % . | . . Robots Rewired . | . . Allies Hacked . | . . Hacks Repelled . | . . Allies | -11 -10 -------- Run | Yrd Mat Total Allies . | . . Largest Group . | . . Highest-Rated Group . | . . Highest-Rated Ally . | . . Total Orders . | . . Ally Attacks . | . . Total Damage . | . . Kills . | . . Allies Corrupted . | . . Allies Melted . | . . Intel | -11 -10 ------- Run | Yrd Mat Robot Analysis Total 3 | . 3 Derelict Logs Recovered . | . . Drone Launches . | . . Drone Recoveries . | . . Exploration | -11 -10 ------------- Run | Yrd Mat Turns Passed 2226 | 84 2142 Spaces Moved 865 | 55 810 Core 25 | 25 . Treads 840 | 30 810 Legs . | . . Wheels . | . . Hover . | . . Flight . | . . Fastest Speed 50 | 50 160 Average Speed 228 | 134 234 Slowest Speed 240 | 200 240 Overloaded Moves . | . . Propulsion Burnouts . | . . Robots Hopped . | . . Cave-ins Triggered . | . . Exploration Rate (%) 44 | 4 84 Regions Visited 1 Branch Regions . Pre-discovered Areas . | . . Known Exits Taken . | . . Unknown Exits Taken 1 | 1 . Scrap Searched . | . . Spaces Dug . | . . Terrain Destroyed . | . . Melee . | . . Projectile . | . . AOE . | . . Terrain Rammed . | . . Walls Destroyed . | . . Machines Disabled . | . . Actions | -11 -10 --------- Run | Yrd Mat Total 1027 | 63 964 Wait 37 | . 37 Move 864 | 54 810 Hop . | . . Pick Up 26 | 4 22 Fast Attach 6 | 5 1 Attach 9 | . 9 Detach . | . . Swap 4 | . 4 Drop 1 | . 1 Fire 66 | . 66 Melee 14 | . 14 Ram . | . . Kick . | . . Crush . | . . Escape Stasis . | . . Rewire . | . . Trap . | . . Miscellaneous . | . . Route ------- -11/Scrapyard -10/Materials (discovered 3 exits: [*Mat x2] / [*Min]) History --------- Turn | Location | Event 29 | -11/Scrapyard | Discovered new exit (range 15) 85 | -11/Scrapyard | Entered Materials 311 | -10/Materials | Build established: Mutant 341 | -10/Materials | Discovered new exit (range 14) 543 | -10/Materials | Discovered new exit (range 15) 985 | -10/Materials | Core integrity fell below 50% 1030 | -10/Materials | Lost 6 parts (2p3n1w) 1050 | -10/Materials | Discovered new exit (range 16) 1436 | -10/Materials | Core integrity fell below 20% 2227 | -10/Materials | Destroyed by G-34 Mercenary with Small Laser Last Messages --------------- 01818_ O-16 Technician destroyed. 01821_ Acquired 20 matter. 01826_ Acquired Lgt. Ion Engine. 01840_ R-06 Scavenger collects Hover Unit. 01879_ System corrupted: Energy discharge (-32). 01982_ K-01 Serf cleans the Matter Pump. 01992_ K-01 Serf cleans the Terminal. 01997_ K-01 Serf cleans the Matter Pump. 02099_ System corrupted: Matter fused (-7). 02142_ T-07 Excavator is excavating. 02156_ Triggered Alarm Trap. 02156_ An alarm sounds. 02156_ ALERT: Alarm triggered, dispatching investigation squad. 02177_ U-05 Engineer lays Concrete. 02206_ G-34 Mercenary destroyed. 02209_ Acquired 44 matter. 02211_ R-06 Scavenger collects Aluminum Leg. 02214_ Acquired Ion Engine. 02220_ E4BRV 8O9LU13R&Q|S<5O Map ----- +----------------------------------------------------+ | ???????????# #!! #??????# # " | | ????######## #"" #??????########## # " | | ????# # #" #??????# # # | | ????# ! """# #### ##??????# ! + ####+ | | ????# """# #???????# # #??# | | ????# """# #???????# """ ??# #??# | | ????# # #????????""""????# ####+ | | ????? ?# ##????????"??????# #[ ^ | | #######/#### #???????????????# # | | #???????????????# # [ | | ##### #???????????????# + | | ????# #???????????????# # = | | ??### #########+## #########???????# # | | ??# # #??????"" ######## #??????## ##### | | ???# #???? "T" #??????# ######## #??? | | ???## #???# #??????# # ## #??? | | ????# #???# #??????# # + #??? | | ????# #???# ! #??????# # """ ## #??? | | ????# #???# #??????# # "" ## #### | | ????# #???########??????# # "!" ### ## ! | | ????# #?????????????????# #[ #?# ## | | ????# #?????????????????# # =#?# ## "" | | ????# #?????????????????# # % #?# ## "" | | ????# ######????????????# # "#?# ## "" | | ????# ############## g # !T#?# ## "" | | ????# r @g # "#?# ## | | ????# #################+### #?# ## | | ????#######+#####??????????# ###+##### ##### | | ??????# #??????????# | | ??????# """ """ #??????????# | | ??????# """ """ #??????????# | | ??????# """ """ #??????????# ################# | | ??????# #??????????#######???????????????? | | ??????# #????????????????????????????????? | | ??????# #????????????????????????????????? | | ??????? ?????????????????????????????????? | | ????????#######??????????????????????????????????? | | | | | | | | | | | | | | | | | | | | | | | | | | | +----------------------------------------------------+ Best States ------------- Heat Dissipation 25 Energy Generation 14 Energy Capacity 250 Matter Stores 300 Matter Capacity 300 Sight Range 16 Terrain Scan Density 10 Evasion (%) 50 Targeting Accuracy 5 Recoil Reduction 2 Item Schematics ----------------- None Robot Schematics ------------------ None Fabricated ------------ Nothing Alien Tech Used ----------------- None Achievements -------------- None Challenges ------------ None Game ------ Seed HardenedFlakTearclaws Manual? 0 Play Time 00:14:59 Cumulative 25.0 hours Start 2024.11.23 @ 11:01:13 End 2024.11.23 @ 11:16:01 Sessions 1 Manual Loads 0 Difficulty Rogue Special Mode None Game No. 40 Rogue 40 Adventurer 0 Explorer 0 Win Type - Total 0 Types 0/0/0/0/0/0/0/0/0 Lore% 7 Gallery% 18 Achievement% 19 Wizard Run 0 Options --------- Layout 1 ASCII 0 Keyboard 0 Movement Mouse Keybinds 0 Fullscreen 1 Font 16/SmallcapsGlow Map View 55x38 Zoom Use 0% Tactical HUD 1 Map Filters NONE Filters NONE Steam 1 RUN: 27779406-32ab-448a-95cb-62fc95ede162